[Event "Late-Titled-Tuesday-Blitz-June-18-2024"]
[Site "Chess.com"]
[Date "2024.06.18"]
[Round "9"]
[White "tptagain"]
[Black "DanielNaroditsky"]
[Result "0-1"]
[WhiteElo "2943"]
[BlackElo "3141"]
[TimeControl "180+1"]
[EndTime "15:46:31 PDT"]
[Termination "DanielNaroditsky won by resignation"]

1. d4 {[%clk 0:03:00.9]} 1... Nf6 {[%clk 0:02:57.2]} 2. Nf3 {[%clk 0:03:01.4]}
2... g6 {[%clk 0:02:53.5]} 3. Bg5 {[%clk 0:03:01.5]} 3... Bg7 {[%clk 0:02:53.6]}
4. Nbd2 {[%clk 0:03:02.1]} 4... O-O {[%clk 0:02:50.2]} 5. e4 {[%clk 0:03:02.1]}
5... d5 {[%clk 0:02:45.9]} 6. exd5 {[%clk 0:03:03]} 6... Nxd5 {[%clk 0:02:46.4]}
7. c3 {[%clk 0:03:03.1]} 7... h6 {[%clk 0:02:39.6]} 8. Bh4 {[%clk 0:03:02.8]}
8... c5 {[%clk 0:02:40.1]} 9. dxc5 {[%clk 0:03:02.4]} 9... Nf4 {[%clk
0:02:39.2]} 10. Bg3 {[%clk 0:03:00.8]} 10... Qc7 {[%clk 0:02:37.2]} 11. Qa4
{[%clk 0:02:31.4]} 11... e5 {[%clk 0:02:36.8]} 12. Nb3 {[%clk 0:02:21.9]} 12...
Nd7 {[%clk 0:02:20.4]} 13. Qc4 {[%clk 0:02:00.5]} 13... b6 {[%clk 0:02:10.2]}
14. Bxf4 {[%clk 0:01:38.4]} 14... exf4 {[%clk 0:02:08.2]} 15. O-O-O {[%clk
0:01:36.9]} 15... Nxc5 {[%clk 0:02:05.7]} 16. Nxc5 {[%clk 0:01:36.6]} 16... bxc5
{[%clk 0:02:05.9]} 17. Qa4 {[%clk 0:01:34.4]} 17... Rb8 {[%clk 0:01:57.7]} 18.
Bc4 {[%clk 0:01:34]} 18... Bf5 {[%clk 0:01:42.6]} 19. Bb3 {[%clk 0:01:08.9]}
19... c4 {[%clk 0:00:55.9]} 20. Qxc4 {[%clk 0:01:06.6]} 20... Qa5 {[%clk
0:00:37.8]} 21. Nd4 {[%clk 0:01:01]} 21... Rbc8 {[%clk 0:00:34.8]} 22. Nc6
{[%clk 0:00:30.4]} 22... Qc7 {[%clk 0:00:34.6]} 23. Ba4 {[%clk 0:00:26.4]} 23...
Kh8 {[%clk 0:00:34.1]} 24. Rhe1 {[%clk 0:00:23.5]} 24... Qb6 {[%clk 0:00:25.1]}
25. Rd2 {[%clk 0:00:19.8]} 25... Be6 {[%clk 0:00:12.2]} 26. Rxe6 {[%clk
0:00:17.9]} 26... fxe6 {[%clk 0:00:12.5]} 27. Qxe6 {[%clk 0:00:17.3]} 27... Qa6
{[%clk 0:00:10.2]} 28. b3 {[%clk 0:00:15.6]} 28... Rf6 {[%clk 0:00:08.2]} 29.
Qe4 {[%clk 0:00:06.1]} 29... Rfxc6 {[%clk 0:00:06.5]} 30. Bxc6 {[%clk
0:00:06.4]} 30... Qxc6 {[%clk 0:00:02.7]} 31. Rd8+ {[%clk 0:00:06.1]} 31... Kh7
{[%clk 0:00:03.4]} 32. Qxc6 {[%clk 0:00:06.4]} 32... Rxc6 {[%clk 0:00:04.3]} 33.
c4 {[%clk 0:00:07.1]} 33... Re6 {[%clk 0:00:03.4]} 34. Kd2 {[%clk 0:00:07.2]}
34... Re7 {[%clk 0:00:03.1]} 35. b4 {[%clk 0:00:07]} 35... g5 {[%clk 0:00:02.9]}
36. c5 {[%clk 0:00:06.6]} 36... g4 {[%clk 0:00:03.5]} 37. Kd3 {[%clk 0:00:06.7]}
37... f3 {[%clk 0:00:03.9]} 38. gxf3 {[%clk 0:00:07]} 38... gxf3 {[%clk
0:00:04.8]} 39. c6 {[%clk 0:00:06.6]} 39... Be5 {[%clk 0:00:03.6]} 40. Rd7
{[%clk 0:00:02]} 40... Rxd7+ {[%clk 0:00:04.1]} 41. cxd7 {[%clk 0:00:02.9]}
41... Bc7 {[%clk 0:00:05]} 42. Ke4 {[%clk 0:00:03.5]} 42... Kg6 {[%clk
0:00:05.5]} 43. Kxf3 {[%clk 0:00:03.7]} 43... Kf7 {[%clk 0:00:06.3]} 44. Kg4
{[%clk 0:00:04]} 44... Ke7 {[%clk 0:00:05.8]} 45. h4 {[%clk 0:00:04.1]} 45...
Kxd7 {[%clk 0:00:06.1]} 46. Kh5 {[%clk 0:00:04.3]} 46... Bf4 {[%clk 0:00:06.8]}
47. Kg6 {[%clk 0:00:04.5]} 47... Ke6 {[%clk 0:00:04.9]} 48. a4 {[%clk
0:00:04.7]} 48... Kd5 {[%clk 0:00:05.4]} 49. f3 {[%clk 0:00:04.8]} 49... Kc4
{[%clk 0:00:05.7]} 50. b5 {[%clk 0:00:04.6]} 50... Kb4 {[%clk 0:00:06.1]} 51.
Kf5 {[%clk 0:00:05.3]} 51... Bd2 {[%clk 0:00:04.5]} 52. f4 {[%clk 0:00:04.6]}
52... Kxa4 {[%clk 0:00:05.1]} 53. Ke5 {[%clk 0:00:04.5]} 53... Kxb5 {[%clk
0:00:05.5]} 54. f5 {[%clk 0:00:05.2]} 54... a5 {[%clk 0:00:06.2]} 55. f6 {[%clk
0:00:05.7]} 55... Bc3+ {[%clk 0:00:06.9]} 56. Kf5 {[%clk 0:00:06.1]} 56... a4
{[%clk 0:00:07]} 57. Kg6 {[%clk 0:00:05.8]} 57... a3 {[%clk 0:00:06.8]} 58. f7
{[%clk 0:00:06.1]} 58... Bb4 {[%clk 0:00:07.5]} 0-1

[Event "Late-Titled-Tuesday-Blitz-June-18-2024"]
[Site "Chess.com"]
[Date "2024.06.18"]
[Round "9"]
[White "edgarhay012"]
[Black "vladislavkovalev"]
[Result "0-1"]
[WhiteElo "2725"]
[BlackElo "2885"]
[TimeControl "180+1"]
[EndTime "15:46:31 PDT"]
[Termination "vladislavkovalev won on time"]

1. e4 {[%clk 0:03:00.9]} 1... e5 {[%clk 0:03:00.3]} 2. Nf3 {[%clk 0:03:00.5]}
2... Nc6 {[%clk 0:03:00.9]} 3. Bb5 {[%clk 0:03:00.6]} 3... a6 {[%clk 0:03:01.3]}
4. Ba4 {[%clk 0:03:00.4]} 4... Nf6 {[%clk 0:03:01.8]} 5. O-O {[%clk 0:03:00.6]}
5... Be7 {[%clk 0:03:02.4]} 6. Bxc6 {[%clk 0:03:00.4]} 6... dxc6 {[%clk
0:03:02.4]} 7. d3 {[%clk 0:03:01.1]} 7... Nd7 {[%clk 0:03:01.8]} 8. Nbd2 {[%clk
0:03:01.6]} 8... O-O {[%clk 0:02:57.2]} 9. Nc4 {[%clk 0:03:01.8]} 9... f6 {[%clk
0:02:56.4]} 10. Nh4 {[%clk 0:03:01.7]} 10... Rf7 {[%clk 0:02:53.5]} 11. Nf5
{[%clk 0:02:58.4]} 11... Bf8 {[%clk 0:02:53.2]} 12. Qf3 {[%clk 0:02:57.6]} 12...
Nc5 {[%clk 0:02:50.5]} 13. Be3 {[%clk 0:02:46.6]} 13... Ne6 {[%clk 0:02:48.8]}
14. Qg3 {[%clk 0:02:44.7]} 14... Kh8 {[%clk 0:02:46.6]} 15. Rae1 {[%clk
0:02:41.6]} 15... c5 {[%clk 0:02:00.2]} 16. f4 {[%clk 0:02:20.3]} 16... exf4
{[%clk 0:02:00.2]} 17. Bxf4 {[%clk 0:02:18.7]} 17... Nxf4 {[%clk 0:01:54.8]} 18.
Qxf4 {[%clk 0:02:16.5]} 18... Be6 {[%clk 0:01:53.4]} 19. Nce3 {[%clk 0:02:10.8]}
19... Qd7 {[%clk 0:01:52.3]} 20. Kh1 {[%clk 0:02:08.1]} 20... Re8 {[%clk
0:01:52]} 21. b3 {[%clk 0:02:04.6]} 21... a5 {[%clk 0:01:42.7]} 22. a4 {[%clk
0:02:03]} 22... b6 {[%clk 0:01:43.1]} 23. Qh4 {[%clk 0:01:55.3]} 23... Bd6
{[%clk 0:01:29.5]} 24. Nxd6 {[%clk 0:01:32.5]} 24... Qxd6 {[%clk 0:01:30.4]} 25.
Rf3 {[%clk 0:01:29.4]} 25... Rfe7 {[%clk 0:01:27.1]} 26. Ref1 {[%clk 0:01:28.7]}
26... Qe5 {[%clk 0:01:22.5]} 27. R3f2 {[%clk 0:01:19.7]} 27... h6 {[%clk
0:01:00.8]} 28. Rf3 {[%clk 0:01:14.3]} 28... Kh7 {[%clk 0:00:57.5]} 29. h3
{[%clk 0:01:00]} 29... c6 {[%clk 0:00:56.7]} 30. Ng4 {[%clk 0:00:49.5]} 30...
Qg5 {[%clk 0:00:51.4]} 31. Qxg5 {[%clk 0:00:43.3]} 31... hxg5 {[%clk 0:00:52.3]}
32. Ne3 {[%clk 0:00:43.4]} 32... Kg6 {[%clk 0:00:46.9]} 33. Kg1 {[%clk
0:00:42.8]} 33... Rd7 {[%clk 0:00:47.1]} 34. Kf2 {[%clk 0:00:39.1]} 34... Rd4
{[%clk 0:00:45.1]} 35. Ke2 {[%clk 0:00:22.9]} 35... b5 {[%clk 0:00:45.2]} 36.
Nf5 {[%clk 0:00:17]} 36... Rb4 {[%clk 0:00:31.8]} 37. Nd6 {[%clk 0:00:15.4]}
37... Re7 {[%clk 0:00:32.3]} 38. Ra1 {[%clk 0:00:07.2]} 38... Rd7 {[%clk
0:00:30.7]} 39. Nf5 {[%clk 0:00:04.3]} 39... c4 {[%clk 0:00:27.5]} 40. axb5
{[%clk 0:00:03.9]} 40... cxb3 {[%clk 0:00:27.9]} 41. cxb3 {[%clk 0:00:03.4]}
41... cxb5 {[%clk 0:00:19.5]} 42. Rxa5 {[%clk 0:00:03.1]} 42... Rxb3 {[%clk
0:00:20.2]} 43. Ra6 {[%clk 0:00:03.3]} 43... Bxf5 {[%clk 0:00:06.4]} 44. exf5+
{[%clk 0:00:04.2]} 44... Kf7 {[%clk 0:00:07]} 45. Re3 {[%clk 0:00:03.9]} 45...
Rb2+ {[%clk 0:00:07.6]} 46. Kf3 {[%clk 0:00:04.2]} 46... Rc7 {[%clk 0:00:05.7]}
47. Ra8 {[%clk 0:00:03.2]} 47... Re7 {[%clk 0:00:04.8]} 48. Rb8 {[%clk
0:00:01.4]} 48... b4 {[%clk 0:00:03.5]} 0-1

[Event "Late-Titled-Tuesday-Blitz-June-18-2024"]
[Site "Chess.com"]
[Date "2024.06.18"]
[Round "9"]
[White "betta2004"]
[Black "GM_dmitrij"]
[Result "0-1"]
[WhiteElo "2479"]
[BlackElo "3005"]
[TimeControl "180+1"]
[EndTime "15:46:33 PDT"]
[Termination "GM_dmitrij won by resignation"]

1. e4 {[%clk 0:02:59.5]} 1... e5 {[%clk 0:02:56.7]} 2. Nf3 {[%clk 0:02:58.1]}
2... Nc6 {[%clk 0:02:55.6]} 3. Bc4 {[%clk 0:02:58.5]} 3... Nf6 {[%clk
0:02:55.7]} 4. d4 {[%clk 0:02:55.7]} 4... exd4 {[%clk 0:02:55]} 5. O-O {[%clk
0:02:54.3]} 5... Nxe4 {[%clk 0:02:53]} 6. Re1 {[%clk 0:02:53.5]} 6... d5 {[%clk
0:02:53.4]} 7. Bxd5 {[%clk 0:02:52.9]} 7... Qxd5 {[%clk 0:02:54.3]} 8. Nc3
{[%clk 0:02:53.4]} 8... Qd7 {[%clk 0:02:54.2]} 9. Rxe4+ {[%clk 0:02:42.4]} 9...
Be7 {[%clk 0:02:53.4]} 10. Nxd4 {[%clk 0:02:34.7]} 10... f5 {[%clk 0:02:44.4]}
11. Rf4 {[%clk 0:01:48.8]} 11... O-O {[%clk 0:02:42.9]} 12. Nxc6 {[%clk
0:01:47.8]} 12... Qxc6 {[%clk 0:02:41.2]} 13. Qd5+ {[%clk 0:01:45.8]} 13... Qxd5
{[%clk 0:02:37.8]} 14. Nxd5 {[%clk 0:01:46.7]} 14... Bd6 {[%clk 0:02:38.4]} 15.
Rd4 {[%clk 0:01:45.4]} 15... Be5 {[%clk 0:02:18.5]} 16. Rd1 {[%clk 0:01:38.6]}
16... f4 {[%clk 0:01:45.1]} 17. Re1 {[%clk 0:01:24.4]} 17... Bd6 {[%clk
0:01:39.9]} 18. f3 {[%clk 0:01:05.7]} 18... Bd7 {[%clk 0:01:36.6]} 19. Bd2
{[%clk 0:01:04.1]} 19... Rf7 {[%clk 0:01:14.6]} 20. Bb4 {[%clk 0:00:53.2]} 20...
Bxb4 {[%clk 0:01:01.9]} 21. Nxb4 {[%clk 0:00:52.5]} 21... Bf5 {[%clk 0:01:02.5]}
22. Re2 {[%clk 0:00:31.8]} 22... Rd8 {[%clk 0:00:59.8]} 23. Rae1 {[%clk
0:00:28.7]} 23... Kf8 {[%clk 0:00:57.4]} 24. c4 {[%clk 0:00:27.2]} 24... c6
{[%clk 0:00:55.5]} 25. b3 {[%clk 0:00:15.2]} 25... g5 {[%clk 0:00:53]} 26. Kf2
{[%clk 0:00:14.8]} 26... Kg7 {[%clk 0:00:47.3]} 27. Nc2 {[%clk 0:00:08.1]} 27...
Kf6 {[%clk 0:00:45.3]} 28. g3 {[%clk 0:00:08.2]} 28... Rfd7 {[%clk 0:00:41.3]}
29. gxf4 {[%clk 0:00:07.7]} 29... gxf4 {[%clk 0:00:42.2]} 30. Na3 {[%clk
0:00:06.9]} 30... Rd2 {[%clk 0:00:29.4]} 31. c5 {[%clk 0:00:07.3]} 31... R8d5
{[%clk 0:00:20.9]} 32. Rxd2 {[%clk 0:00:04]} 32... Rxd2+ {[%clk 0:00:21.8]} 33.
Re2 {[%clk 0:00:04.9]} 33... Rd5 {[%clk 0:00:21.3]} 34. b4 {[%clk 0:00:03.2]}
34... a5 {[%clk 0:00:20.5]} 35. Rb2 {[%clk 0:00:02.9]} 35... axb4 {[%clk
0:00:16.5]} 36. Rxb4 {[%clk 0:00:03.7]} 36... Rxc5 {[%clk 0:00:14.2]} 37. Rxb7
{[%clk 0:00:02.6]} 37... Ra5 {[%clk 0:00:14.8]} 38. Nc4 {[%clk 0:00:02.9]} 38...
Rxa2+ {[%clk 0:00:14.9]} 39. Kg1 {[%clk 0:00:03.6]} 39... Rc2 {[%clk 0:00:13.3]}
40. Nd6 {[%clk 0:00:04]} 40... Bg6 {[%clk 0:00:13.2]} 41. Rc7 {[%clk 0:00:03.9]}
41... Ke5 {[%clk 0:00:12.4]} 42. Nb7 {[%clk 0:00:02.5]} 42... Kd4 {[%clk
0:00:11.5]} 43. Re7 {[%clk 0:00:01.5]} 43... c5 {[%clk 0:00:11]} 44. Nd6 {[%clk
0:00:02]} 44... c4 {[%clk 0:00:10.2]} 45. Nb5+ {[%clk 0:00:02.3]} 45... Kc5
{[%clk 0:00:10.4]} 46. Nc7 {[%clk 0:00:02.1]} 46... c3 {[%clk 0:00:10]} 47. Rg7
{[%clk 0:00:01]} 47... Rb2 {[%clk 0:00:08.2]} 48. Ne6+ {[%clk 0:00:01.2]} 48...
Kd6 {[%clk 0:00:07.5]} 49. Nxf4 {[%clk 0:00:01.9]} 49... c2 {[%clk 0:00:07.9]}
50. Ne2 {[%clk 0:00:02.4]} 50... Rb1+ {[%clk 0:00:07]} 51. Kf2 {[%clk
0:00:02.7]} 51... Rh1 {[%clk 0:00:07.5]} 52. Kg3 {[%clk 0:00:02.6]} 52... Re1
{[%clk 0:00:07.5]} 53. Nd4 {[%clk 0:00:01.7]} 53... c1=Q {[%clk 0:00:07.4]} 54.
Nb5+ {[%clk 0:00:02.6]} 54... Ke6 {[%clk 0:00:07.1]} 55. Nd4+ {[%clk 0:00:03]}
55... Kf6 {[%clk 0:00:07.7]} 0-1

[Event "Late-Titled-Tuesday-Blitz-June-18-2024"]
[Site "Chess.com"]
[Date "2024.06.18"]
[Round "9"]
[White "VaglioSagan"]
[Black "xakevicius91"]
[Result "0-1"]
[WhiteElo "2526"]
[BlackElo "2652"]
[TimeControl "180+1"]
[EndTime "15:46:38 PDT"]
[Termination "xakevicius91 won on time"]

1. d4 {[%clk 0:03:00.9]} 1... Nf6 {[%clk 0:02:59.7]} 2. Nf3 {[%clk 0:02:57.1]}
2... e6 {[%clk 0:02:59.9]} 3. e3 {[%clk 0:02:56.8]} 3... b6 {[%clk 0:02:59.3]}
4. b3 {[%clk 0:02:57.3]} 4... Bb7 {[%clk 0:02:58.4]} 5. Bb2 {[%clk 0:02:58]}
5... d5 {[%clk 0:02:59]} 6. Bd3 {[%clk 0:02:58.2]} 6... Bd6 {[%clk 0:02:59.6]}
7. O-O {[%clk 0:02:58.7]} 7... O-O {[%clk 0:03:00.2]} 8. c4 {[%clk 0:02:59.3]}
8... Nbd7 {[%clk 0:02:59.3]} 9. Nc3 {[%clk 0:02:59.8]} 9... a6 {[%clk
0:02:59.3]} 10. Qe2 {[%clk 0:02:58.8]} 10... Ne4 {[%clk 0:02:58.6]} 11. cxd5
{[%clk 0:02:36.7]} 11... exd5 {[%clk 0:02:56.8]} 12. Bxe4 {[%clk 0:02:21]} 12...
dxe4 {[%clk 0:02:55.8]} 13. Nd2 {[%clk 0:02:21.6]} 13... f5 {[%clk 0:02:43]} 14.
Nc4 {[%clk 0:02:16.9]} 14... Rf6 {[%clk 0:02:43]} 15. Nxd6 {[%clk 0:02:14.7]}
15... Rxd6 {[%clk 0:02:43.5]} 16. Qc4+ {[%clk 0:02:04.2]} 16... Kh8 {[%clk
0:02:42.1]} 17. Ne2 {[%clk 0:02:04.8]} 17... Rc8 {[%clk 0:02:20.4]} 18. Nf4
{[%clk 0:01:59.8]} 18... Qe8 {[%clk 0:02:09.1]} 19. Rac1 {[%clk 0:01:46.1]}
19... Nf6 {[%clk 0:01:54.9]} 20. Rfd1 {[%clk 0:01:36.5]} 20... Nd5 {[%clk
0:01:54.1]} 21. Nxd5 {[%clk 0:01:27.5]} 21... Rxd5 {[%clk 0:01:52.8]} 22. Rc2
{[%clk 0:01:19.4]} 22... Qd7 {[%clk 0:01:51.2]} 23. Rdc1 {[%clk 0:01:19.1]}
23... h6 {[%clk 0:01:48.2]} 24. Qe2 {[%clk 0:01:09.5]} 24... Qf7 {[%clk
0:01:43.5]} 25. g3 {[%clk 0:00:56.9]} 25... Kh7 {[%clk 0:01:43.3]} 26. b4 {[%clk
0:00:56.9]} 26... Rd7 {[%clk 0:01:41.5]} 27. Qc4 {[%clk 0:00:55.7]} 27... Bd5
{[%clk 0:01:35]} 28. Qxa6 {[%clk 0:00:55.6]} 28... Ra8 {[%clk 0:01:33.7]} 29.
Qb5 {[%clk 0:00:54.2]} 29... Rxa2 {[%clk 0:01:31.3]} 30. Ba1 {[%clk 0:00:49.1]}
30... Rxc2 {[%clk 0:01:27.6]} 31. Rxc2 {[%clk 0:00:50]} 31... Rd8 {[%clk
0:01:21.4]} 32. Qf1 {[%clk 0:00:37.4]} 32... Ra8 {[%clk 0:01:19.9]} 33. Qc1
{[%clk 0:00:38]} 33... Ra7 {[%clk 0:01:17]} 34. Bc3 {[%clk 0:00:36.3]} 34... Qd7
{[%clk 0:01:15.7]} 35. Be1 {[%clk 0:00:29.3]} 35... c6 {[%clk 0:01:10.7]} 36. b5
{[%clk 0:00:21.6]} 36... cxb5 {[%clk 0:01:09.8]} 37. Bb4 {[%clk 0:00:22.3]}
37... Bc4 {[%clk 0:01:09.1]} 38. d5 {[%clk 0:00:19.6]} 38... Qxd5 {[%clk
0:01:07.7]} 39. Bc3 {[%clk 0:00:17.9]} 39... Rd7 {[%clk 0:01:00.1]} 40. Rd2
{[%clk 0:00:18.4]} 40... Qe6 {[%clk 0:00:57.7]} 41. Qb2 {[%clk 0:00:15.5]} 41...
Rd3 {[%clk 0:00:50.9]} 42. Rxd3 {[%clk 0:00:09.8]} 42... exd3 {[%clk 0:00:51.8]}
43. Bxg7 {[%clk 0:00:10.1]} 43... d2 {[%clk 0:00:49.7]} 44. Qxd2 {[%clk
0:00:10]} 44... Kxg7 {[%clk 0:00:49.9]} 45. Qd4+ {[%clk 0:00:10.8]} 45... Qf6
{[%clk 0:00:48.8]} 46. Qd7+ {[%clk 0:00:11.3]} 46... Kf8 {[%clk 0:00:36.7]} 47.
Qc8+ {[%clk 0:00:08]} 47... Kf7 {[%clk 0:00:36.2]} 48. Qd7+ {[%clk 0:00:07.9]}
48... Kg8 {[%clk 0:00:35.3]} 49. Qe8+ {[%clk 0:00:06.9]} 49... Kg7 {[%clk
0:00:34.4]} 50. Qd7+ {[%clk 0:00:07.5]} 50... Bf7 {[%clk 0:00:34.5]} 51. h4
{[%clk 0:00:07.5]} 51... b4 {[%clk 0:00:32.7]} 52. Qb5 {[%clk 0:00:07.2]} 52...
b3 {[%clk 0:00:32.2]} 53. Kh2 {[%clk 0:00:07.1]} 53... b2 {[%clk 0:00:32.6]} 54.
e4 {[%clk 0:00:03.7]} 54... fxe4 {[%clk 0:00:31.5]} 55. Kh3 {[%clk 0:00:03.5]}
55... Qxf2 {[%clk 0:00:25.1]} 56. Qe5+ {[%clk 0:00:02.6]} 56... Qf6 {[%clk
0:00:25.2]} 57. Qb5 {[%clk 0:00:02.8]} 57... Be6+ {[%clk 0:00:22]} 58. g4 {[%clk
0:00:03.5]} 58... Qf3+ {[%clk 0:00:21.4]} 59. Kh2 {[%clk 0:00:04.2]} 59... Qf4+
{[%clk 0:00:20.1]} 60. Kg2 {[%clk 0:00:03.9]} 60... Qxg4+ {[%clk 0:00:20.4]} 61.
Kf2 {[%clk 0:00:04.5]} 61... Qxh4+ {[%clk 0:00:20.8]} 62. Ke3 {[%clk 0:00:05.3]}
62... Qg5+ {[%clk 0:00:19.9]} 63. Kd4 {[%clk 0:00:02.9]} 63... Qxb5 {[%clk
0:00:18.4]} 0-1

[Event "Late-Titled-Tuesday-Blitz-June-18-2024"]
[Site "Chess.com"]
[Date "2024.06.18"]
[Round "9"]
[White "protectiago"]
[Black "N_I_Chess"]
[Result "0-1"]
[WhiteElo "2140"]
[BlackElo "2313"]
[TimeControl "180+1"]
[EndTime "15:46:41 PDT"]
[Termination "N_I_Chess won on time"]

1. d4 {[%clk 0:02:59.4]} 1... Nf6 {[%clk 0:02:03]} 2. c4 {[%clk 0:02:58.5]} 2...
e6 {[%clk 0:02:02.8]} 3. g3 {[%clk 0:02:58.6]} 3... Bb4+ {[%clk 0:02:02.8]} 4.
Bd2 {[%clk 0:02:58.4]} 4... Qe7 {[%clk 0:02:03.7]} 5. Nf3 {[%clk 0:02:57.6]}
5... O-O {[%clk 0:02:03.8]} 6. Bg2 {[%clk 0:02:57.9]} 6... Bxd2+ {[%clk
0:02:04]} 7. Nbxd2 {[%clk 0:02:56.7]} 7... d6 {[%clk 0:02:04.5]} 8. O-O {[%clk
0:02:56.5]} 8... Nbd7 {[%clk 0:02:04.2]} 9. Qc2 {[%clk 0:02:50.8]} 9... e5
{[%clk 0:02:03.5]} 10. dxe5 {[%clk 0:02:48.5]} 10... Nxe5 {[%clk 0:02:03.2]} 11.
e4 {[%clk 0:02:46.6]} 11... Bd7 {[%clk 0:01:58.4]} 12. Nd4 {[%clk 0:02:45.2]}
12... Nc6 {[%clk 0:01:56.3]} 13. N2b3 {[%clk 0:02:27.4]} 13... Rfe8 {[%clk
0:01:49.9]} 14. Rfe1 {[%clk 0:02:26.6]} 14... a5 {[%clk 0:01:47.6]} 15. Rad1
{[%clk 0:02:04.1]} 15... a4 {[%clk 0:01:36.7]} 16. Nxc6 {[%clk 0:02:04.1]} 16...
bxc6 {[%clk 0:01:30.7]} 17. Nd4 {[%clk 0:02:01.7]} 17... c5 {[%clk 0:01:30]} 18.
Nb5 {[%clk 0:01:31.2]} 18... Bxb5 {[%clk 0:00:58.7]} 19. cxb5 {[%clk 0:01:32.1]}
19... Ra5 {[%clk 0:00:57.5]} 20. Qc3 {[%clk 0:01:01.2]} 20... Rxb5 {[%clk
0:00:43.8]} 21. e5 {[%clk 0:01:01.1]} 21... dxe5 {[%clk 0:00:42]} 22. Bc6 {[%clk
0:01:00.6]} 22... Rbb8 {[%clk 0:00:31.7]} 23. Bxe8 {[%clk 0:00:57.2]} 23... Rxe8
{[%clk 0:00:32.6]} 24. Qa5 {[%clk 0:00:48.9]} 24... e4 {[%clk 0:00:17.6]} 25.
Qxa4 {[%clk 0:00:45.8]} 25... Ng4 {[%clk 0:00:15.5]} 26. Qd7 {[%clk 0:00:44.6]}
26... Qe5 {[%clk 0:00:14.3]} 27. h3 {[%clk 0:00:36.9]} 27... Nf6 {[%clk
0:00:13.6]} 28. Qb5 {[%clk 0:00:29.4]} 28... h5 {[%clk 0:00:08.2]} 29. a4 {[%clk
0:00:26]} 29... h4 {[%clk 0:00:08]} 30. Re3 {[%clk 0:00:22.4]} 30... hxg3 {[%clk
0:00:07.8]} 31. Rxg3 {[%clk 0:00:21.8]} 31... Re6 {[%clk 0:00:07.9]} 32. Qe2
{[%clk 0:00:17.4]} 32... Nh5 {[%clk 0:00:05.9]} 33. Qg4 {[%clk 0:00:15.2]} 33...
g6 {[%clk 0:00:04.7]} 34. Rd8+ {[%clk 0:00:13.6]} 34... Kh7 {[%clk 0:00:04.6]}
35. Qg5 {[%clk 0:00:13.9]} 35... Qxg5 {[%clk 0:00:04.1]} 36. Rxg5 {[%clk
0:00:13.7]} 36... e3 {[%clk 0:00:04.4]} 37. fxe3 {[%clk 0:00:13.4]} 37... Rxe3
{[%clk 0:00:05.3]} 38. Rxc5 {[%clk 0:00:13.5]} 38... Nf4 {[%clk 0:00:05.4]} 39.
Rxc7 {[%clk 0:00:12]} 39... Nxh3+ {[%clk 0:00:02.9]} 40. Kg2 {[%clk 0:00:10.9]}
40... Ng5 {[%clk 0:00:03.8]} 41. Rdd7 {[%clk 0:00:09.4]} 41... Re2+ {[%clk
0:00:03.1]} 42. Kg3 {[%clk 0:00:09]} 42... Rxb2 {[%clk 0:00:04]} 43. a5 {[%clk
0:00:08.1]} 43... Ra2 {[%clk 0:00:02.7]} 44. Rd5 {[%clk 0:00:05.1]} 44... Ne4+
{[%clk 0:00:03.2]} 45. Kf4 {[%clk 0:00:04.5]} 45... Nf6 {[%clk 0:00:02.9]} 46.
Rd6 {[%clk 0:00:03.1]} 46... Kg7 {[%clk 0:00:02.6]} 47. a6 {[%clk 0:00:02.8]}
47... Ra4+ {[%clk 0:00:02]} 48. Kf3 {[%clk 0:00:02.3]} 48... Ra3+ {[%clk
0:00:02.6]} 49. Ke2 {[%clk 0:00:01.8]} 49... Ra2+ {[%clk 0:00:02.5]} 50. Kd1
{[%clk 0:00:01.6]} 50... Ra3 {[%clk 0:00:03.4]} 51. Kc2 {[%clk 0:00:01.4]} 51...
Ra2+ {[%clk 0:00:03.8]} 52. Kb3 {[%clk 0:00:01.6]} 52... Ra5 {[%clk 0:00:04.7]}
53. Kb4 {[%clk 0:00:01.5]} 53... Ra1 {[%clk 0:00:05.4]} 54. Rcc6 {[%clk
0:00:01.4]} 54... Rb1+ {[%clk 0:00:06.3]} 55. Ka3 {[%clk 0:00:01.3]} 55... Ne4
{[%clk 0:00:06.8]} 0-1